Department Family,Entity,Date,Expense Type,Expense Area,Supplier,Amount in Sterling,System Reference
BEIS,Companies House,06/05/2016,Agency/Contract Staff         ,Accounting                    ,Hays Specialist Recruitment Ltd         ,"1,260.00",558889
BEIS,Companies House,20/05/2016,Agency/Contract Staff         ,Accounting                    ,Hays Specialist Recruitment Ltd         ,"2,100.00",559355
BEIS,Companies House,26/05/2016,Agency/Contract Staff         ,Accounting                    ,Hays Specialist Recruitment Ltd         ,"1,470.00",559552
BEIS,Companies House,06/05/2016,Agency/Contract Staff         ,Accounting                    ,NOW ACCOUNTANCY                         ,"1,202.99",558930
BEIS,Companies House,06/05/2016,Agency/Contract Staff         ,Accounting                    ,NOW ACCOUNTANCY                         ,"1,239.82",558931
BEIS,Companies House,26/05/2016,Agency/Contract Staff         ,Accounting                    ,NOW ACCOUNTANCY                         ,971.26,559527
BEIS,Companies House,31/05/2016,Agency/Contract Staff         ,Accounting                    ,NOW ACCOUNTANCY                         ,"1,197.00",559653
BEIS,Companies House,31/05/2016,Agency/Contract Staff         ,Accounting                    ,NOW ACCOUNTANCY                         ,"1,236.53",559657
BEIS,Companies House,06/05/2016,Agency/Contract Staff         ,Development Strategy          ,Capita Resourcing                       ,"2,311.86",558817
BEIS,Companies House,06/05/2016,Agency/Contract Staff         ,Development Strategy          ,Capita Resourcing                       ,"4,510.20",558818
BEIS,Companies House,12/05/2016,Agency/Contract Staff         ,Development Strategy          ,Capita Resourcing                       ,"2,311.86",559077
BEIS,Companies House,12/05/2016,Agency/Contract Staff         ,Development Strategy          ,Capita Resourcing                       ,"1,387.12",559082
BEIS,Companies House,20/05/2016,Agency/Contract Staff         ,Development Strategy          ,Capita Resourcing                       ,"3,698.98",559405
BEIS,Companies House,20/05/2016,Agency/Contract Staff         ,Development Strategy          ,Capita Resourcing                       ,"2,543.05",559406
BEIS,Companies House,26/05/2016,Agency/Contract Staff         ,Development Strategy          ,Capita Resourcing                       ,"4,059.18",559541
BEIS,Companies House,18/05/2016,Agency/Contract Staff         ,IT Services                   ,Spring Technology Staffing Services Ltd ,"2,105.86",559239
BEIS,Companies House,18/05/2016,Agency/Contract Staff         ,IT Services                   ,Spring Technology Staffing Services Ltd ,"2,632.32",559240
BEIS,Companies House,24/05/2016,Agency/Contract Staff         ,IT Services                   ,Spring Technology Staffing Services Ltd ,"2,632.32",559500
BEIS,Companies House,24/05/2016,Agency/Contract Staff         ,IT Services                   ,Spring Technology Staffing Services Ltd ,"1,579.39",559501
BEIS,Companies House,06/05/2016,Agency/Contract Staff         ,Project Centre                ,Capita Resourcing                       ,"8,254.20",558820
BEIS,Companies House,06/05/2016,Agency/Contract Staff         ,Project Centre                ,Capita Resourcing                       ,"5,987.64",558821
BEIS,Companies House,12/05/2016,Agency/Contract Staff         ,Project Centre                ,Capita Resourcing                       ,"2,395.06",559079
BEIS,Companies House,12/05/2016,Agency/Contract Staff         ,Project Centre                ,Capita Resourcing                       ,"3,301.68",559080
BEIS,Companies House,20/05/2016,Agency/Contract Staff         ,Project Centre                ,Capita Resourcing                       ,"2,993.82",559407
BEIS,Companies House,20/05/2016,Agency/Contract Staff         ,Project Centre                ,Capita Resourcing                       ,"4,127.10",559408
BEIS,Companies House,26/05/2016,Agency/Contract Staff         ,Project Centre                ,Capita Resourcing                       ,"4,127.10",559538
BEIS,Companies House,26/05/2016,Agency/Contract Staff         ,Project Centre                ,Capita Resourcing                       ,"2,993.82",559539
BEIS,Companies House,06/05/2016,Agency/Contract Staff         ,Project Centre                ,Hays Specialist Recruitment Ltd         ,"2,376.00",558892
BEIS,Companies House,12/05/2016,Agency/Contract Staff         ,Project Centre                ,Hays Specialist Recruitment Ltd         ,"1,485.00",559070
BEIS,Companies House,20/05/2016,Agency/Contract Staff         ,Project Centre                ,Hays Specialist Recruitment Ltd         ,"2,376.00",559354
BEIS,Companies House,26/05/2016,Agency/Contract Staff         ,Project Centre                ,Hays Specialist Recruitment Ltd         ,"2,376.00",559550
BEIS,Companies House,06/05/2016,Agency/Contract Staff         ,Software Engineering          ,Capita Resourcing                       ,"2,506.68",558819
BEIS,Companies House,12/05/2016,Agency/Contract Staff         ,Software Engineering          ,Capita Resourcing                       ,"4,219.78",559078
BEIS,Companies House,12/05/2016,Agency/Contract Staff         ,Software Engineering          ,Capita Resourcing                       ,"2,005.34",559081
BEIS,Companies House,26/05/2016,Agency/Contract Staff         ,Software Engineering          ,Capita Resourcing                       ,"5,013.36",559540
BEIS,Companies House,26/05/2016,Agency/Contract Staff         ,Software Engineering          ,Capita Resourcing                       ,"4,219.78",559542
BEIS,Companies House,18/05/2016,Agency/Contract Staff         ,Software Engineering          ,FDM GROUP                               ,"6,480.00",558979
BEIS,Companies House,20/05/2016,Agency/Contract Staff         ,Software Engineering          ,FDM GROUP                               ,"4,860.00",559360
BEIS,Companies House,09/05/2016,Agency/Contract Staff         ,Software Engineering          ,Hays Specialist Recruitment Ltd         ,"2,820.00",558963
BEIS,Companies House,12/05/2016,Agency/Contract Staff         ,Software Engineering          ,Hays Specialist Recruitment Ltd         ,"2,256.00",559072
BEIS,Companies House,20/05/2016,Agency/Contract Staff         ,Software Engineering          ,Hays Specialist Recruitment Ltd         ,"2,820.00",559353
BEIS,Companies House,04/05/2016,Agency/Contract Staff         ,Software Engineering          ,Spring Technology Staffing Services Ltd ,"3,076.52",558764
BEIS,Companies House,06/05/2016,Agency/Contract Staff         ,Software Engineering          ,Spring Technology Staffing Services Ltd ,"3,253.80",558814
BEIS,Companies House,06/05/2016,Agency/Contract Staff         ,Software Engineering          ,Spring Technology Staffing Services Ltd ,"2,632.32",558816
BEIS,Companies House,06/05/2016,Agency/Contract Staff         ,Software Engineering          ,Spring Technology Staffing Services Ltd ,"2,632.32",558823
BEIS,Companies House,06/05/2016,Agency/Contract Staff         ,Software Engineering          ,Spring Technology Staffing Services Ltd ,"2,632.32",558827
BEIS,Companies House,06/05/2016,Agency/Contract Staff         ,Software Engineering          ,Spring Technology Staffing Services Ltd ,"2,105.86",558829
BEIS,Companies House,06/05/2016,Agency/Contract Staff         ,Software Engineering          ,Spring Technology Staffing Services Ltd ,526.46,558831
BEIS,Companies House,06/05/2016,Agency/Contract Staff         ,Software Engineering          ,Spring Technology Staffing Services Ltd ,"1,842.62",558833
BEIS,Companies House,06/05/2016,Agency/Contract Staff         ,Software Engineering          ,Spring Technology Staffing Services Ltd ,"2,930.68",558918
BEIS,Companies House,12/05/2016,Agency/Contract Staff         ,Software Engineering          ,Spring Technology Staffing Services Ltd ,"3,895.96",559064
BEIS,Companies House,12/05/2016,Agency/Contract Staff         ,Software Engineering          ,Spring Technology Staffing Services Ltd ,"2,747.48",559065
BEIS,Companies House,12/05/2016,Agency/Contract Staff         ,Software Engineering          ,Spring Technology Staffing Services Ltd ,"2,533.61",559091
BEIS,Companies House,18/05/2016,Agency/Contract Staff         ,Software Engineering          ,Spring Technology Staffing Services Ltd ,"3,253.80",559322
BEIS,Companies House,18/05/2016,Agency/Contract Staff         ,Software Engineering          ,Spring Technology Staffing Services Ltd ,"2,366.40",559323
BEIS,Companies House,24/05/2016,Agency/Contract Staff         ,Software Engineering          ,Spring Technology Staffing Services Ltd ,"3,895.92",559435
BEIS,Companies House,24/05/2016,Agency/Contract Staff         ,Software Engineering          ,Spring Technology Staffing Services Ltd ,"3,253.80",559502
BEIS,Companies House,26/05/2016,Agency/Contract Staff         ,Software Engineering          ,Spring Technology Staffing Services Ltd ,"2,484.25",559537
BEIS,Companies House,26/05/2016,Agency/Contract Staff         ,Software Engineering          ,Spring Technology Staffing Services Ltd ,"2,303.28",559543
BEIS,Companies House,10/05/2016,Agency/Contract Staff         ,Software Engineering          ,TRIAD RESOURCING                        ,"16,416.00",559016
BEIS,Companies House,12/05/2016,Building Refurbishment        ,Building Services             ,Clive Osborne,556.20,559076
BEIS,Companies House,18/05/2016,Building Refurbishment        ,Building Services             ,ROCHE AUDIO VISUAL                      ,"1,990.00",559314
BEIS,Companies House,16/05/2016,C.H. Adjudicator              ,Late Filing Penalties,"Personal Expenses, Name Withheld","5,503.98",559133
BEIS,Companies House,12/05/2016,C.H. Adjudicator              ,Late Filing Penalties,"Personal Expenses, Name Withheld","2,624.45",558676
BEIS,Companies House,12/05/2016,C.H. Adjudicator              ,Late Filing Penalties,"Personal Expenses, Name Withheld","1,807.81",558786
BEIS,Companies House,31/05/2016,C.H. Adjudicator              ,Late Filing Penalties,"Personal Expenses, Name Withheld","2,851.81",559656
BEIS,Companies House,06/05/2016,CE Additions This Year        ,IT Services                   ,XMA LTD                                 ,"33,537.00",558914
BEIS,Companies House,06/05/2016,CE Additions This Year        ,IT Services                   ,XMA LTD                                 ,"8,403.18",558916
BEIS,Companies House,18/05/2016,CHD Invoice Printing          ,Accounting                    ,DST OUTPUT (LONDON) LTD                 ,"1,860.25",559319
BEIS,Companies House,06/05/2016,Civil Service Learning        ,Training                      ,Capita Business Services Ltd            ,"1,294.00",558884
BEIS,Companies House,09/05/2016,Civil Service Learning        ,Training                      ,Capita Business Services Ltd            ,"1,349.00",558890
BEIS,Companies House,06/05/2016,Cloud Services                ,Software Engineering          ,Amazon Web Services                     ,"12,973.93",558913
BEIS,Companies House,16/05/2016,Comms Equipment          ,IT Services                   ,BT IT SERVICES LTD                      ,"5,700.00",559249
BEIS,Companies House,06/05/2016,Consultants Computer          ,Accounting                    ,SAA CONSULTANTS LIMITED                 ,"8,970.00",558919
BEIS,Companies House,06/05/2016,Consultants Computer          ,Late Filing Penalties,Hays Specialist Recruitment Ltd         ,923.06,558887
BEIS,Companies House,20/05/2016,Consultants Computer          ,Late Filing Penalties,Hays Specialist Recruitment Ltd         ,923.06,559352
BEIS,Companies House,20/05/2016,Consultants Computer          ,Late Filing Penalties,Hays Specialist Recruitment Ltd         ,807.68,559361
BEIS,Companies House,16/05/2016,Contact Centre                ,Contact Centre,Serco Limited                           ,"178,848.53",559252
BEIS,Companies House,24/05/2016,CRC energy efficiency scheme  ,Building Services             ,ENVIRONMENT AGENCY                      ,"1,290.00",559493
BEIS,Companies House,06/05/2016,Developing Software           ,Late Filing Penalties,Advanced Business Solutions             ,"3,600.00",558073
BEIS,Companies House,06/05/2016,Developing Software           ,Late Filing Penalties,Advanced Business Solutions             ,"1,750.00",558074
BEIS,Companies House,06/05/2016,Developing Software           ,Late Filing Penalties,Advanced Business Solutions             ,875.00,558075
BEIS,Companies House,12/05/2016,Developing Software           ,Late Filing Penalties,Advanced Business Solutions             ,"2,625.00",558788
BEIS,Companies House,12/05/2016,Developing Software           ,Late Filing Penalties,Advanced Business Solutions             ,"4,375.00",558789
BEIS,Companies House,12/05/2016,Developing Software           ,Late Filing Penalties,Advanced Business Solutions             ,"2,625.00",558790
BEIS,Companies House,12/05/2016,Developing Software           ,Late Filing Penalties,Advanced Business Solutions             ,"2,625.00",558791
BEIS,Companies House,12/05/2016,Developing Software           ,Late Filing Penalties,Advanced Business Solutions             ,875.00,558792
BEIS,Companies House,06/05/2016,Distributed Equipment         ,IT Services                   ,XMA LTD                                 ,518.46,558916
BEIS,Companies House,10/05/2016,Electricity                   ,Building Services             ,E D F ENERGY CUSTOMERS PLC              ,"40,847.84",558991
BEIS,Companies House,26/05/2016,Electricity                   ,Edinburgh                     ,Scottish Hydro Electric                 ,613.98,559308
BEIS,Companies House,18/05/2016,Electricity                   ,Northern Ireland              ,Power NI                                ,881.56,559304
BEIS,Companies House,26/05/2016,Enforcement,Late Filing Penalties,AKINIKA DEBT RECOVERY LIMITED           ,"16,910.72",559548
BEIS,Companies House,26/05/2016,Enforcement,Late Filing Penalties,AKINIKA DEBT RECOVERY LIMITED           ,"3,400.69",559548
BEIS,Companies House,26/05/2016,Enforcement,Late Filing Penalties,AKINIKA DEBT RECOVERY LIMITED           ,"8,612.00",559548
BEIS,Companies House,18/05/2016,Envelopes                     ,Procurement                   ,PRINT ON SOLUTIONS LTD                  ,"2,428.50",559311
BEIS,Companies House,18/05/2016,Envelopes                     ,Procurement                   ,PRINT ON SOLUTIONS LTD                  ,966.06,559312
BEIS,Companies House,10/05/2016,EST Additions This Year       ,Building Services             ,Department for Business Innovation Skill,"454,887.86",559012
BEIS,Companies House,04/05/2016,Ex Gratia Payments            ,Customer Operations Team      ,Temp Station (North West) Limited,750.00,558784
BEIS,Companies House,20/05/2016,Ex Gratia Payments            ,Customer Services/London      ,Eric Lo,500.00,559315
BEIS,Companies House,31/05/2016,Exhibitions                   ,Communications                ,New Start Exhibitions Ltd,"1,000.00",559613
BEIS,Companies House,18/05/2016,External managed services     ,Development Strategy          ,Epimorphics                             ,"3,175.96",559305
BEIS,Companies House,10/05/2016,External managed services     ,Development Strategy          ,Methods Digital Limited                 ,"11,109.00",558885
BEIS,Companies House,10/05/2016,External managed services     ,Development Strategy          ,Methods Digital Limited                 ,"112,824.00",558891
BEIS,Companies House,16/05/2016,Fire Protection               ,Building Services             ,Advanced Fire Technologies Ltd          ,"11,434.50",559135
BEIS,Companies House,26/05/2016,Gas                           ,Building Services             ,CORONA ENERGY RETAIL 4 LTD              ,745.88,559489
BEIS,Companies House,06/05/2016,Gazette Notices               ,CPES                          ,Stationery Office                       ,940.27,558771
BEIS,Companies House,31/05/2016,Gazette Notices               ,CPES                          ,Stationery Office                       ,"7,708.99",559244
BEIS,Companies House,31/05/2016,Gazette Notices               ,CPES                          ,Stationery Office                       ,940.27,559246
BEIS,Companies House,10/05/2016,General Advertising           ,Communications                ,A McLay & Company Ltd                   ,643.61,558983
BEIS,Companies House,06/05/2016,General Advertising           ,PRODUCT                       ,NLA MEDIA ACCESS LIMITED                ,"1,526.40",558765
BEIS,Companies House,06/05/2016,General Advertising           ,PRODUCT                       ,NLA MEDIA ACCESS LIMITED                ,618.44,558766
BEIS,Companies House,04/05/2016,Hardware &SoftwareMaintenance ,Procurement                   ,Computacenter (GCAT)                    ,"7,832.48",558775
BEIS,Companies House,20/05/2016,Hardware &SoftwareMaintenance ,Procurement                   ,EDM Group Ltd                           ,"25,282.25",559398
BEIS,Companies House,31/05/2016,Hardware &SoftwareMaintenance ,Procurement                   ,Grey Matter                             ,796.92,559651
BEIS,Companies House,31/05/2016,Hardware &SoftwareMaintenance ,Procurement                   ,Grey Matter                             ,809.57,559652
BEIS,Companies House,26/05/2016,Hardware &SoftwareMaintenance ,Procurement                   ,Kodak Alaris Ltd                        ,"1,693.12",559526
BEIS,Companies House,06/05/2016,Hardware &SoftwareMaintenance ,Procurement                   ,NCC GROUP SECURITY                      ,"24,646.00",558770
BEIS,Companies House,06/05/2016,Hardware &SoftwareMaintenance ,Procurement                   ,Oracle                                  ,"86,612.26",558666
BEIS,Companies House,26/05/2016,Hardware &SoftwareMaintenance ,Procurement                   ,Oracle                                  ,"183,376.54",559555
BEIS,Companies House,20/05/2016,Hardware &SoftwareMaintenance ,Procurement                   ,SOFTCAT LIMITED                         ,"115,119.84",559411
BEIS,Companies House,24/05/2016,Hardware &SoftwareMaintenance ,Procurement                   ,Tech Know Systems Inc                   ,"3,386.68",559450
BEIS,Companies House,20/05/2016,Health promotion working group,Health and Wellbeing          ,Psychology Wales,650.00,559404
BEIS,Companies House,16/05/2016,Hospitality                   ,Customer Services/London      ,Department for Business Innovation Skill,"1,383.60",559147
BEIS,Companies House,20/05/2016,Hospitality                   ,Procurement                   ,Elior UK plc                            ,830.69,559350
BEIS,Companies House,12/05/2016,IDS                           ,Customer Operations Team      ,City Sprint                             ,"2,298.61",559063
BEIS,Companies House,12/05/2016,Legal Costs,Legal Services                ,GOVERNMENT LEGAL DEPARTMENT             ,"42,098.40",559018
BEIS,Companies House,31/05/2016,Occupational Health Contract  ,Health and Wellbeing          ,HEALTH MANAGEMENT LTD                   ,"8,333.20",559605
BEIS,Companies House,12/05/2016,Occupational Health Contract  ,Health and Wellbeing          ,Mary Gavin Teamworks                    ,517.50,558794
BEIS,Companies House,26/05/2016,Occupational Health Contract  ,Health and Wellbeing          ,Mary Gavin Teamworks                    ,720.00,559549
BEIS,Companies House,06/05/2016,PC's                          ,IT Services                   ,XMA LTD                                 ,"2,640.80",558915
BEIS,Companies House,06/05/2016,PC's                          ,IT Services                   ,XMA LTD                                 ,"2,310.70",558916
BEIS,Companies House,16/05/2016,Postage Costs,Communications                ,A McLay & Company Ltd                   ,"1,431.19",558796
BEIS,Companies House,10/05/2016,Postage Costs,Communications                ,A McLay & Company Ltd                   ,"1,780.00",558911
BEIS,Companies House,04/05/2016,Postage Costs,Customer Operations Team      ,Royal Mail                              ,"13,891.25",558776
BEIS,Companies House,10/05/2016,Postage Costs,Customer Operations Team      ,Royal Mail                              ,"11,579.25",559014
BEIS,Companies House,16/05/2016,Postage Costs,Customer Operations Team      ,Royal Mail                              ,"17,799.81",559233
BEIS,Companies House,24/05/2016,Postage Costs,Customer Operations Team      ,Royal Mail                              ,"12,572.38",559497
BEIS,Companies House,26/05/2016,Postage Costs,Edinburgh                     ,Royal Mail                              ,"1,047.55",559445
BEIS,Companies House,26/05/2016,Postage Costs,Edinburgh                     ,Royal Mail                              ,"1,173.08",559499
BEIS,Companies House,24/05/2016,Postage Costs,Northern Ireland              ,Neopost Limited                         ,500.00,559482
BEIS,Companies House,25/05/2016,Postage Costs,Northern Ireland              ,Neopost Limited                         ,500.00,559483
BEIS,Companies House,10/05/2016,Postage Document Exchange     ,Customer Data Management      ,DX Network Services Limited             ,"1,875.00",559042
BEIS,Companies House,10/05/2016,Postage Document Exchange     ,Customer Operations Team      ,DX Network Services Limited             ,"7,950.00",559043
BEIS,Companies House,10/05/2016,Postage Document Exchange     ,Edinburgh                     ,DX Network Services Limited             ,"1,350.00",559043
BEIS,Companies House,10/05/2016,Postage Document Exchange     ,Northern Ireland              ,DX Network Services Limited             ,"1,138.00",559043
BEIS,Companies House,20/05/2016,Prepaid conference fees       ,Directorate                   ,A McLay & Company Ltd                   ,692.00,559358
BEIS,Companies House,31/05/2016,Prepaid conference fees       ,Directorate                   ,Drake A V Video Ltd                     ,"15,780.30",559608
BEIS,Companies House,17/05/2016,Prepaid conference fees       ,Directorate                   ,Fleet Street Consulting,"8,244.70",559255
BEIS,Companies House,24/05/2016,Prepaid conference fees       ,Directorate                   ,PA Promotions                           ,556.25,559496
BEIS,Companies House,10/05/2016,Professional Fees             ,IT Services                   ,Computacenter (GCAT)                    ,"2,004.00",558989
BEIS,Companies House,18/05/2016,Professional Fees             ,IT Services                   ,Computacenter (GCAT)                    ,"1,622.40",559253
BEIS,Companies House,20/05/2016,Professional Fees             ,IT Services                   ,Computacenter (GCAT)                    ,"2,028.00",559357
BEIS,Companies House,26/05/2016,Professional Fees             ,IT Services                   ,Computacenter (GCAT)                    ,"1,622.40",559532
BEIS,Companies House,26/05/2016,Professional Fees             ,IT Services                   ,Computacenter (GCAT)                    ,"2,004.00",559533
BEIS,Companies House,12/05/2016,Professional Fees             ,IT Services                   ,Risual Limited                          ,"4,300.00",559068
BEIS,Companies House,06/05/2016,Professional Fees             ,IT Services                   ,Spring Technology Staffing Services Ltd ,"2,632.32",558815
BEIS,Companies House,06/05/2016,Professional Fees             ,IT Services                   ,Spring Technology Staffing Services Ltd ,"2,632.32",558822
BEIS,Companies House,06/05/2016,Professional Fees             ,IT Services                   ,Spring Technology Staffing Services Ltd ,"2,632.32",558826
BEIS,Companies House,06/05/2016,Professional Fees             ,IT Services                   ,Spring Technology Staffing Services Ltd ,"2,105.86",558830
BEIS,Companies House,06/05/2016,Professional Fees             ,IT Services                   ,Spring Technology Staffing Services Ltd ,526.46,558832
BEIS,Companies House,06/05/2016,Professional Fees             ,Registry Integrity Team       ,The Insolvency Service                  ,"7,449.60",558929
BEIS,Companies House,20/05/2016,Professional Fees             ,Software Management           ,DEVOPS GUYS LIMITED                     ,"2,400.00",559248
BEIS,Companies House,16/05/2016,Publication & prom Literature ,Communications                ,A McLay & Company Ltd                   ,"2,900.00",558910
BEIS,Companies House,16/05/2016,Publication & prom Literature ,Communications                ,INTELLECTUAL PROPERTY OFFICE            ,"2,115.00",559134
BEIS,Companies House,06/05/2016,Publication & prom Literature ,Communications                ,WILLIAMS LEA                            ,"3,128.89",558920
BEIS,Companies House,10/05/2016,Publication & prom Literature ,PRODUCT                       ,WILLIAMS LEA                            ,"6,693.00",558921
BEIS,Companies House,12/05/2016,Recruitment Expenses          ,HR Service delivery           ,Computer Futures                        ,"15,000.00",558927
BEIS,Companies House,12/05/2016,Recruitment Expenses          ,HR Service delivery           ,HUMAN RESOURCING LTD                    ,"2,174.59",559097
BEIS,Companies House,20/05/2016,Restaurant Services           ,Procurement                   ,Elior UK plc                            ,"13,935.60",559401
BEIS,Companies House,18/05/2016,Rolling Maint.&minor contracts,Building Services             ,Drake A V Video Ltd                     ,"1,187.94",559250
BEIS,Companies House,05/05/2016,Rolling Maint.&minor contracts,Building Services             ,Hetec Detensysteme,"1,971.20",558882
BEIS,Companies House,20/05/2016,Security                      ,Accounting                    ,Loomis Uk Ltd                           ,676.47,559399
BEIS,Companies House,09/05/2016,T and S for usability project ,PRODUCT                       ,PEOPLE FOR RESEARCH                     ,"1,236.00",558922
BEIS,Companies House,09/05/2016,T and S for usability project ,PRODUCT                       ,PEOPLE FOR RESEARCH                     ,"1,575.00",558923
BEIS,Companies House,16/05/2016,Taxi - staff                  ,All Areas,Premier Cars (Cardiff) Ltd              ,"2,595.10",559254
BEIS,Companies House,06/05/2016,Telecom Maintenance           ,Procurement                   ,UNIFY ENTERPRISE COMMUNICATIONS LIMITED ,600.00,558773
BEIS,Companies House,06/05/2016,Telecom Maintenance           ,Procurement                   ,UNIFY ENTERPRISE COMMUNICATIONS LIMITED ,907.50,558940
BEIS,Companies House,12/05/2016,Telecom Mobile Phone charges  ,IT Services                   ,TELEFONICA UK LTD                       ,"1,072.50",559062
BEIS,Companies House,04/05/2016,Telecom Mobile Phone charges  ,Procurement                   ,Vodafone Ltd                            ,"5,570.50",558539
BEIS,Companies House,20/05/2016,Telecom moves and changes     ,Procurement                   ,P J Telecom Services                    ,715.00,559300
BEIS,Companies House,16/05/2016,Telephone Costs,Procurement                   ,British Telecom PLC                     ,"1,623.04",554578
BEIS,Companies House,16/05/2016,Telephone Costs,Procurement                   ,British Telecom PLC                     ,"1,623.04",555567
BEIS,Companies House,16/05/2016,Telephone Costs,Procurement                   ,British Telecom PLC                     ,"1,623.04",556589
BEIS,Companies House,16/05/2016,Telephone Costs,Procurement                   ,British Telecom PLC                     ,"1,623.04",557590
BEIS,Companies House,16/05/2016,Telephone Costs,Procurement                   ,British Telecom PLC                     ,"1,623.04",558787
BEIS,Companies House,26/05/2016,Telephone Costs,Procurement                   ,British Telecom PLC                     ,"1,623.04",559492
BEIS,Companies House,18/05/2016,TFM Cost Stream 2             ,Building Services             ,Department for Business Innovation Skill,"33,476.53",559296
BEIS,Companies House,10/05/2016,TFM refurbishment             ,Building Services             ,Department for Business Innovation Skill,"306,948.90",559012
BEIS,Companies House,16/05/2016,Training External             ,Training                      ,RUTH STEGGLES THE FRESH AIR COACH       ,600.00,559136
BEIS,Companies House,31/05/2016,Training External             ,Training                      ,SCARLET DESIGN INTERNATIONAL LIMITED    ,"6,099.00",559708
BEIS,Companies House,09/05/2016,Training ISD                  ,Training                      ,QA Ltd                                  ,515.60,558933
BEIS,Companies House,10/05/2016,Training ISD                  ,Training                      ,QA Ltd                                  ,573.60,558934
BEIS,Companies House,10/05/2016,Training ISD                  ,Training                      ,QA Ltd                                  ,573.60,558935
BEIS,Companies House,10/05/2016,Training ISD                  ,Training                      ,QA Ltd                                  ,515.60,558936
BEIS,Companies House,10/05/2016,Training ISD                  ,Training                      ,QA Ltd                                  ,"1,089.20",558990
BEIS,Companies House,26/05/2016,Training ISD                  ,Training                      ,QA Ltd                                  ,"4,500.00",559553
BEIS,Companies House,26/05/2016,Training ISD                  ,Training                      ,QA Ltd                                  ,"7,500.00",559554
BEIS,Companies House,26/05/2016,Training ISD                  ,Training                      ,STRATUM WORLDWIDE LTD                   ,"1,495.00",559534
BEIS,Companies House,26/05/2016,Training ISD                  ,Training                      ,STRATUM WORLDWIDE LTD                   ,"1,495.00",559535
BEIS,Companies House,10/05/2016,Water                         ,Building Services             ,Dwr Cymru Welsh Water                   ,"2,673.35",558982
